Cogmind - Beta 11.1 @@@ ROGUE MODE // 2022.12.19 @ 14:31:51 Player: Grimhilt Result: Destroyed by P-60 Hacker with Shock Rifle Performance ------------- Evolutions (4) 2000 Regions Visited (11) 2200 Robots Destroyed (91) 455 Value Destroyed (2707) 2707 Prototype IDs (14) 280 Alien Tech Used (0) 0 Bonus (962) 962 TOTAL SCORE: 8604 Bonus ------- High Alert Combat Kills 24 Follower Combat Kills 322 Entered DSFs 500 Aligned with FarCom 300 Friendly Fire -184 Cogmind --------- Core Integrity 0/850 Matter 249/300 Energy 100/100 System Corruption 2% Temperature Cool (0) Movement Core (50) Location -6/Lower Caves Parts ------- > --- POWER (3) -------- (None) > --- PROPULSION (3) --- (None) > --- UTILITY (6) ------ Visual Processing Unit > --- WEAPON (3) ------- (None) > --- INVENTORY (5) ---- Hacking Suite Peak State ------------ > --- POWER ------------ Cooled Ion Engine F-cell Engine Cold Fusion Reactor > --- PROPULSION ------- Flexi-carbon Leg Hover Unit Improved Hover Unit > --- UTILITY ---------- Advanced Weight Redist. System Gravity Neutralizer Visual Processing Unit Cloak of Protection > --- WEAPON ----------- Heavy Particle Gun Gauss Rifle Advanced EMP Blaster > --- INVENTORY -------- Improved Flight Unit Hacking Suite Field Laser Heavy Particle Gun Rocket Launcher [Rating: 55] Favorites ----------- Power Heavy Ion Engine Engine Heavy Ion Engine Power Core Light Nuclear Core Reactor Cold Fusion Reactor Propulsion Aluminum Leg Leg Aluminum Leg Wheel Wheel Hover Unit Improved Hover Unit Flight Unit Flight Unit Utility Visual Processing Unit Device Cloak of Protection Storage Medium Matter Pod Processor Visual Processing Unit Hackware Hacking Suite Protection Improved Weapon Shielding Weapon Grenade Launcher Energy Gun Spread Laser Energy Cannon Advanced Beam Cannon Ballistic Gun Gauss Rifle Launcher Grenade Launcher Special Melee Weapon Datajack Build | -11 -10 -9 -9 -9 -8 -8 -8 -7 -7 -6 -6 ------- Run | Scr Mat Mat Min Exi Min Mat Sto Fac DSF Fac Low Slots Evolved 8 | . . 2 . . . 2 . 2 . 2 . Power 2 | . . . . . . 1 . . . 1 . Propulsion 1 | . . 1 . . . . . . . . . Utility 4 | . . 1 . . . 1 . 1 . 1 . Weapon 1 | . . . . . . . . 1 . . . Parts Attached 112 | 5 23 21 4 3 1 27 17 2 2 5 2 Power 14 | 1 2 1 1 . . 3 4 . . 1 1 Engine 11 | 1 2 . 1 . . 3 3 . . . 1 Core 2 | . . 1 . . . . 1 . . . . Reactor 1 | . . . . . . . . . . 1 . Propulsion 36 | 2 11 5 . . 1 7 7 1 1 1 . Treads . | . . . . . . . . . . . . Leg 12 | . . 3 . . 1 4 3 . 1 . . Wheel 3 | 2 1 . . . . . . . . . . Hover 15 | . 8 2 . . . 3 1 1 . . . Flight 6 | . 2 . . . . . 3 . . 1 . Utility 23 | . 4 4 1 3 . 8 3 . . . . Device 17 | . 2 2 . 3 . 7 3 . . . . Storage 1 | . 1 . . . . . . . . . . Processor 3 | . 1 1 1 . . . . . . . . Hackware 1 | . . 1 . . . . . . . . . Protection 1 | . . . . . . 1 . . . . . Artifact . | . . . . . . . . . . . . Weapon 39 | 2 6 11 2 . . 9 3 1 1 3 1 Energy Gun 15 | 1 3 . 1 . . 6 1 1 . 2 . Energy Cannon 4 | . . 4 . . . . . . . . . Ballistic Gun 9 | 1 2 3 . . . . 1 . 1 . 1 Ballistic Cannon . | . . . . . . . . . . . . Launcher 6 | . 1 . 1 . . 2 1 . . 1 . Special Weapon . | . . . . . . . . . . . . Impact Weapon . | . . . . . . . . . . . . Slashing Weapon . | . . . . . . . . . . . . Piercing Weapon . | . . . . . . . . . . . . Special Melee Weapon 5 | . . 4 . . . 1 . . . . . Unidentified Prototypes 14 | . . 2 1 3 . 3 4 . . 1 . Parts Lost 47 | . 8 11 . . . 6 5 . . 15 2 Power 9 | . 1 2 . . . 1 1 . . 3 1 Propulsion 17 | . 4 5 . . . 2 2 . . 4 . Utility 9 | . 2 . . . . 2 2 . . 3 . Weapon 12 | . 1 4 . . . 1 . . . 5 1 Highest Loss Streak 15 | . 3 3 . . . 3 2 . . 15 2 To Critical Strikes . | . . . . . . . . . . . . Average Slot Usage (%) 85 | . 92 80 76 87 90 91 88 84 92 70 9 Engine 11 | . 12 1 11 11 11 17 15 15 15 9 3 Leg 13 | . . 5 22 22 24 19 8 7 7 5 . Hover 7 | . 18 13 . . . 4 11 7 15 9 . Device 13 | . 7 9 11 10 11 13 20 23 23 15 . Storage 1 | . 13 2 . . . . . . . . . Processor 14 | . 6 15 21 22 22 17 9 7 7 6 6 Energy Gun 9 | . 14 3 2 11 11 13 8 7 7 6 . Ballistic Gun 2 | . 8 10 . . . . . 7 7 4 . Launcher 6 | . 5 . 7 11 11 3 8 7 7 4 . Naked Turns . | . . . . . . . . . . . . Heaviest Build 53 | 6 13 13 15 22 22 29 37 40 41 53 13 Greatest Support 47 | 20 20 20 20 20 30 47 27 27 32 25 3 Greatest Overweight (x) 4 | . 2 4 . 1 1 3 1 1 1 2 4 Average Overweight (x) . | . . . . . . . . 1 1 . 1 Largest Inventory Capacity 5 | 5 5 5 5 5 5 5 5 5 5 5 5 Average Capacity 5 | 5 5 5 5 5 5 5 5 5 5 5 5 Most Carried 5 | 5 5 5 5 5 5 5 5 5 5 5 2 Average Carried 4 | 2 4 4 3 4 5 4 4 4 5 3 1 Final Capacity 5 | 5 5 5 5 5 5 5 5 5 5 5 5 Final Carried 5 | 3 5 5 4 5 5 5 5 5 5 1 1 Class Distribution -------------------- 56% | Scavenger-Mutant 28% | Mutant 9% | Commander-Mutant 3% | Generator-Mutant Dominant Class ---------------- Mutant | -10/Materials Scavenger-Mutant | -9/Materials Scavenger-Mutant | -9/Mines Scavenger-Mutant | -9/Exiles Scavenger-Mutant | -8/Mines Scavenger-Mutant | -8/Materials Mutant | -8/Storage Commander-Mutant | -7/Factory Scavenger-Mutant | -7/DSF Generator-Mutant | -6/Factory Mutant | -6/Lower Caves Resources | -11 -10 -9 -9 -9 -8 -8 -8 -7 -7 -6 -6 ----------- Run | Scr Mat Mat Min Exi Min Mat Sto Fac DSF Fac Low Matter Collected 2031 | 235 326 497 45 . 60 335 373 10 100 23 27 Remotely . | . . . . . . . . . . . . Salvage Created 3457 | . 384 1223 . . 18 544 723 . 298 267 . Parts 185 | . 23 62 . . 7 21 39 . 19 14 . Haulers Intercepted 4 | . 1 1 . . . 1 1 . . . . Recyclers Shooed 11 | . 3 3 . . . 1 1 . . 3 . Parts Field Recycled . | . . . . . . . . . . . . Retrieved Matter . | . . . . . . . . . . . . Parts Self-Destructed . | . . . . . . . . . . . . Prevented . | . . . . . . . . . . . . Kills | -11 -10 -9 -9 -9 -8 -8 -8 -7 -7 -6 -6 ------- Run | Scr Mat Mat Min Exi Min Mat Sto Fac DSF Fac Low Combat Hostiles Destroyed 62 | . 5 19 . . . 12 14 . 6 6 . Guns 38 | . 4 14 . . . 8 1 . 6 5 . Cannons 4 | . . 4 . . . . . . . . . AOE 17 | . 1 . . . . 3 12 . . 1 . Classes Destroyed 13 | . 6 2 . . 1 3 . . 1 . . Worker 3 | . 2 . . . 1 . . . . . . Builder 4 | . . . . . 1 2 . . . 1 . Tunneler 1 | . . . . . . 1 . . . . . Hauler 4 | . 1 1 . . . 1 1 . . . . Recycler 7 | . 1 4 . . . 2 . . . . . Operator 1 | . . 1 . . . . . . . . . Watcher 8 | . 3 2 . . . 1 1 . . 1 . Swarmer 17 | . 2 4 . . . 3 4 . . 4 . Grunt 23 | . 3 10 . . . 2 6 . 2 . . Sentry 10 | . . 5 . . . 1 4 . . . . Specialist 5 | . . . . . . 2 . . 2 1 . Hunter 6 | . . . . . . 5 . . 1 . . Heavy 2 | . . . . . . . . . 1 1 . Best Kill Streak 7 | . 4 6 . . 1 5 6 . 4 7 . Combat Bots Only 6 | . 2 5 . . . 4 6 . 4 4 . Max Kills in Single Turn 2 | . 1 1 . . 1 2 2 . 1 2 . Gunslinging 1 | . . . . . . 1 . . . . . Exploded 2 | . 1 . . . . 1 2 . . 1 . Melee . | . . . . . . . . . . . . Uniques/NPCs Destroyed . | . . . . . . . . . . . . Combat | -11 -10 -9 -9 -9 -8 -8 -8 -7 -7 -6 -6 -------- Run | Scr Mat Mat Min Exi Min Mat Sto Fac DSF Fac Low Damage Taken 5733 | . 755 1203 . . 31 937 464 . 202 1671 470 Core 1551 | . 230 272 . . . 161 29 . . 521 338 Absorbed by Shields 191 | . . . . . . 191 . . . . . Redirected to Shielding 103 | . . . . . . . 103 . . . . Regen/Repaired (Parts) 65 | . . . . . . . 65 . . . . Core Remaining (%) 61 | 100 8 . . . 32 . 65 . 100 . . Volleys Fired 293 | . 63 84 . . 2 59 44 . 15 24 2 Largest 3 | . 2 2 . . 2 2 2 . 3 3 1 Hottest 124 | . 86 91 . . 95 111 105 . 124 119 28 Shots Fired 540 | . 119 160 . . 4 108 64 . 29 54 2 Gun 438 | . 115 112 . . 2 88 44 . 27 48 2 Cannon 48 | . . 48 . . . . . . . . . Launcher 54 | . 4 . . . 2 20 20 . 2 6 . Special . | . . . . . . . . . . . . Kinetic 173 | . 53 84 . . . . 4 . 15 15 2 Thermal 313 | . 62 76 . . 2 88 40 . 12 33 . Explosive 29 | . 4 . . . 2 20 . . . 3 . Electromagnetic 25 | . . . . . . . 20 . 2 3 . Robot Hit Streak 13 | . 9 13 . . 3 7 4 . 4 12 3 Robot Miss Streak 5 | . 4 5 . . 4 4 5 . 5 5 . Penetration Max 1 | . . . . . . . . . . 1 . Secondary Targets 5 | . 1 . . . . 2 . . . 2 . Max Gunslinging Chain 1 | . 1 . . . . 1 . . . 1 . Shots Hit Robots 286 | . 46 109 . . 4 55 23 . 14 33 2 Core Hits 168 | . 22 39 . . 5 46 26 . 12 17 1 Critical Kills 1 | . . 1 . . . . . . . . . Critical Parts Destroyed 1 | . . 1 . . . . . . . . . Critical Strikes 11 | . 2 4 . . . 2 2 . 1 . . Burn 9 | . 2 2 . . . 2 2 . 1 . . Meltdown 1 | . . 1 . . . . . . . . . Destroy 1 | . . 1 . . . . . . . . . Melee Attacks 13 | . . 9 . . . 4 . . . . . Impact . | . . . . . . . . . . . . Slashing . | . . . . . . . . . . . . Piercing . | . . . . . . . . . . . . Sneak Attacks 11 | . . 9 . . . 2 . . . . . Combat Hostiles . | . . . . . . . . . . . . Follow-up Attacks . | . . . . . . . . . . . . Damage Inflicted 6876 | . 666 1653 4 . 156 1689 1543 . 246 891 28 Guns 3715 | . 516 1148 . . 22 788 313 . 227 673 28 Cannons 497 | . . 497 . . . . . . . . . Explosions 2633 | . 148 . . . 132 898 1226 . 19 210 . Melee . | . . . . . . . . . . . . Ramming 31 | . 2 8 4 . 2 3 4 . . 8 . Kinetic 1471 | . 147 897 . . . . 18 . 125 256 28 Thermal 2969 | . 369 748 . . 22 857 389 . 102 482 . Explosive 1198 | . 148 . . . 132 829 . . . 89 . Electromagnetic 1207 | . . . . . . . 1132 . 19 56 . Impact . | . . . . . . . . . . . . Slashing . | . . . . . . . . . . . . Piercing . | . . . . . . . . . . . . Highest Corruption 2 | . . . . . . . 2 . . 2 2 Average Corruption 1 | . . . . . . . 1 . . 2 2 Corruption Purged . | . . . . . . . . . . . . Corruption Blocked . | . . . . . . . . . . . . Effects 3 | . . . . . . . 2 . . . 1 Message Errors 1 | . . . . . . . 1 . . . . Energy Discharges 1 | . . . . . . . 1 . . . . Data Loss (minor) 1 | . . . . . . . . . . . 1 Overload Shots . | . . . . . . . . . . . . Overflow Damage 90 | . 21 1 . . . 16 52 . . . . Projectiles 1 | . . 1 . . . . . . . . . Explosions 89 | . 21 . . . . 16 52 . . . . Melee . | . . . . . . . . . . . . Knockbacks 1 | . . 1 . . . . . . . . . Impact 1 | . . 1 . . . . . . . . . Kinetic . | . . . . . . . . . . . . Secondary . | . . . . . . . . . . . . Self-Inflicted Damage 632 | . 321 . . . 16 . 186 . . 109 . Shots 21 | . 5 . . . 1 . 11 . . 4 . Rammed 2 | . 1 . . . . . . . . 1 . Targets Rammed 9 | . 1 1 2 . 1 2 1 . . 1 . Kicked 7 | . . 1 2 . 1 2 1 . . . . Crushed . | . . . . . . . . . . . . Highest Temperature 389 | . 353 360 . . 27 389 335 . 222 74 . Average Temperature 109 | . 104 107 . . 15 148 105 . 50 32 . Received Heat Transfer 911 | . 78 456 . . 9 185 117 . 18 48 . Effects 2 | . . . . . . 2 . . . . . Energy Bleed 1 | . . . . . . 1 . . . . . Interference 1 | . . . . . . 1 . . . . . Siege Activations . | . . . . . . . . . . . . Robots Corrupted 1 | . . . . . . . 1 . . . . Combat Hostiles 1 | . . . . . . . 1 . . . . Parts Fried 4 | . . . . . . . 4 . . . . Impact Corruptions . | . . . . . . . . . . . . Robots Melted 2 | . . 1 . . . 1 . . . . . Combat Hostiles 2 | . . 1 . . . 1 . . . . . Parts Melted 14 | . 2 3 . . . 5 . . 1 3 . Heat Transferred 6582 | . 1184 1665 . . 30 1703 840 . 296 864 . Parts Sabotaged . | . . . . . . . . . . . . Parts Stolen . | . . . . . . . . . . . . Parts Stripped . | . . . . . . . . . . . . Power Chain Reactions 8 | . . . . . . . 5 . 1 2 . Missiles Intercepted . | . . . . . . . . . . . . Alert | -11 -10 -9 -9 -9 -8 -8 -8 -7 -7 -6 -6 ------- Run | Scr Mat Mat Min Exi Min Mat Sto Fac DSF Fac Low Peak Influence 477 | . 193 477 148 . 98 325 415 149 201 258 . Initial 148 | . . 81 148 . . 5 55 142 104 105 . Average 148 | . 55 306 110 . 5 166 270 142 184 138 . Maximum Alert Level 2 | . . 2 . . . 1 2 . 1 1 . Low Security (%) 67 | 100 100 12 100 . 100 54 25 100 42 84 . Level 1 30 | . . 66 . . . 45 71 . 57 15 . Level 2 2 | . . 20 . . . . 3 . . . . Level 3 . | . . . . . . . . . . . . Level 4 . | . . . . . . . . . . . . Level 5 . | . . . . . . . . . . . . High Security . | . . . . . . . . . . . . Max Security . | . . . . . . . . . . . . Sterilizations 1 | . . . . . . . . . 1 . . Squads Dispatched 14 | . 1 2 . . . 3 1 1 2 4 . Investigation 2 | . . . . . . 1 . 1 . . . Extermination . | . . . . . . . . . . . . Reinforcement 12 | . 1 2 . . . 2 1 . 2 4 . Assault . | . . . . . . . . . . . . Garrison . | . . . . . . . . . . . . Intercept . | . . . . . . . . . . . . Searches Triggered . | . . . . . . . . . . . . Construction Impeded 4 | . . 1 . . . 1 1 . . 1 . Haulers Reinforced . | . . . . . . . . . . . . Active Scanning Responses . | . . . . . . . . . . . . Cargo Convoy Interrupts . | . . . . . . . . . . . . Stealth | -11 -10 -9 -9 -9 -8 -8 -8 -7 -7 -6 -6 --------- Run | Scr Mat Mat Min Exi Min Mat Sto Fac DSF Fac Low Distress Signals 10 | . 2 3 . . . 3 2 . . . . Communications Jammed . | . . . . . . . . . . . . Distress Signals . | . . . . . . . . . . . . Times Spotted 105 | . 13 27 . . 2 16 19 . 7 18 3 Peak Tracking Total 9 | . 4 7 . . 3 3 4 . 4 9 2 Tactical Retreats 3 | . . 1 . . 1 . . . . 1 . Traps | -11 -10 -9 -9 -9 -8 -8 -8 -7 -7 -6 -6 ------- Run | Scr Mat Mat Min Exi Min Mat Sto Fac DSF Fac Low Traps Triggered 10 | . 1 . . . . 1 2 1 4 1 . Indirectly 3 | . . . . . . . 2 . 1 . . Trap Hack Attempts . | . . . . . . . . . . . . Triggered . | . . . . . . . . . . . . Disarmed . | . . . . . . . . . . . . Reprogrammed . | . . . . . . . . . . . . Reused . | . . . . . . . . . . . . Traps Extracted . | . . . . . . . . . . . . Installed . | . . . . . . . . . . . . Triggered . | . . . . . . . . . . . . Machines | -11 -10 -9 -9 -9 -8 -8 -8 -7 -7 -6 -6 ---------- Run | Scr Mat Mat Min Exi Min Mat Sto Fac DSF Fac Low Machines Disabled 11 | . 3 . . . 1 3 4 . . . . Max in Single Turn 2 | . 2 . . . 1 2 1 . . . . Machines Sabotaged . | . . . . . . . . . . . . Garrisons Compromised . | . . . . . . . . . . . . Overloaded Fab Kills . | . . . . . . . . . . . . Hacking | -11 -10 -9 -9 -9 -8 -8 -8 -7 -7 -6 -6 --------- Run | Scr Mat Mat Min Exi Min Mat Sto Fac DSF Fac Low Machines Accessed 10 | . 1 2 . . . 1 5 1 . . . Terminals 8 | . 1 1 . . . 1 4 1 . . . Fabricators . | . . . . . . . . . . . . Repair Stations 1 | . . . . . . . 1 . . . . Recycling Units . | . . . . . . . . . . . . Scanalyzers 1 | . . 1 . . . . . . . . . Garrison Access . | . . . . . . . . . . . . Total Hacks 17 | . 1 3 . . . 5 7 1 . . . Successful 10 | . 1 2 . . . 2 4 1 . . . Failed 7 | . . 1 . . . 3 3 . . . . Catastrophic 2 | . . . . . . . 2 . . . . Database Lockouts . | . . . . . . . . . . . . Manual 4 | . . . . 2 . . 2 . . . . Terminals 13 | . 1 1 . . . 5 5 1 . . . Fabricators . | . . . . . . . . . . . . Repair Stations 2 | . . . . . . . 2 . . . . Recycling Units . | . . . . . . . . . . . . Scanalyzers 2 | . . 2 . . . . . . . . . Garrison Access . | . . . . . . . . . . . . Terminal Hacks 6 | . 1 . . . . 2 2 1 . . . Record 2 | . . . . . . 2 . . . . . Open Door 2 | . . . . . . . 2 . . . . Open DSF 1 | . . . . . . . . 1 . . . Locate Traps 1 | . 1 . . . . . . . . . . Fabricator Hacks . | . . . . . . . . . . . . Repair Station Hacks 2 | . . . . . . . 2 . . . . Scan Component 1 | . . . . . . . 1 . . . . Repair 1 | . . . . . . . 1 . . . . Recycling Unit Hacks . | . . . . . . . . . . . . Scanalyzer 2 | . . 2 . . . . . . . . . Insert Component 1 | . . 1 . . . . . . . . . Analyze 1 | . . 1 . . . . . . . . . Garrison Access Hacks . | . . . . . . . . . . . . Unauthorized Hacks . | . . . . . . . . . . . . Terminals . | . . . . . . . . . . . . Fabricators . | . . . . . . . . . . . . Repair Stations . | . . . . . . . . . . . . Recycling Units . | . . . . . . . . . . . . Scanalyzers . | . . . . . . . . . . . . Garrison Access . | . . . . . . . . . . . . Data Cores Recovered 1 | . . . . . . . . 1 . . . Used . | . . . . . . . . . . . . Hacking Detections 6 | . . 1 . . . 1 4 . . . . Full Trace Events 1 | . . . . . . 1 . . . . . Feedback Events . | . . . . . . . . . . . . Feedback Blocked . | . . . . . . . . . . . . Robot Schematics Acquired . | . . . . . . . . . . . . Robots Built . | . . . . . . . . . . . . Authchips . | . . . . . . . . . . . . Time . | . . . . . . . . . . . . Total Robot Build Rating . | . . . . . . . . . . . . Part Schematics Acquired 1 | . . 1 . . . . . . . . . Parts Built . | . . . . . . . . . . . . Authchips . | . . . . . . . . . . . . Time . | . . . . . . . . . . . . Total Part Build Rating . | . . . . . . . . . . . . Parts Repaired 1 | . . . . . . . 1 . . . . Time 60 | . . . . . . . 60 . . . . Parts Recycled . | . . . . . . . . . . . . Recycled Matter . | . . . . . . . . . . . . Retrieved Matter . | . . . . . . . . . . . . Retrieved Components . | . . . . . . . . . . . . Parts Scanalyzed 1 | . . 1 . . . . . . . . . Part Schematics Acquired 1 | . . 1 . . . . . . . . . Parts Damaged . | . . . . . . . . . . . . Bothacking | -11 -10 -9 -9 -9 -8 -8 -8 -7 -7 -6 -6 ------------ Run | Scr Mat Mat Min Exi Min Mat Sto Fac DSF Fac Low Used RIF Installer . | . . . . . . . . . . . . Robots Hacked 5 | . . 3 . . . 2 . . . . . Non-combat 5 | . . 3 . . . 2 . . . . . Combat . | . . . . . . . . . . . . Robot Hacks Applied 6 | . . 4 . . . 2 . . . . . parse_system 2 | . . 1 . . . 1 . . . . . no_distress 2 | . . 1 . . . 1 . . . . . find_recycling 1 | . . 1 . . . . . . . . . check_alert 1 | . . 1 . . . . . . . . . Relay Couplers Released . | . . . . . . . . . . . . Fabnet Peak Effective % . | . . . . . . . . . . . . Robots Rewired 1 | . . . . . . . 1 . . . . Allies Hacked . | . . . . . . . . . . . . Hacks Repelled . | . . . . . . . . . . . . Allies | -11 -10 -9 -9 -9 -8 -8 -8 -7 -7 -6 -6 -------- Run | Scr Mat Mat Min Exi Min Mat Sto Fac DSF Fac Low Total Allies 13 | . . . 3 . . . 10 . . . . Largest Group 10 | . . . 3 3 3 2 10 7 7 . . Highest-Rated Group 173 | . . . 40 40 40 32 173 125 125 . . Highest-Rated Ally 29 | . . . 16 16 16 16 29 29 29 . . Total Orders . | . . . . . . . . . . . . Ally Attacks 86 | . . . . . 13 18 22 3 30 . . Total Damage 1034 | . . . . . 172 122 283 49 408 . . Kills 15 | . . . . . 3 1 8 1 2 . . Allies Corrupted . | . . . . . . . . . . . . Allies Melted . | . . . . . . . . . . . . Intel | -11 -10 -9 -9 -9 -8 -8 -8 -7 -7 -6 -6 ------- Run | Scr Mat Mat Min Exi Min Mat Sto Fac DSF Fac Low Robot Analysis Total . | . . . . . . . . . . . . Derelict Logs Recovered 2 | . . . 2 . . . . . . . . Drone Launches . | . . . . . . . . . . . . Drone Recoveries . | . . . . . . . . . . . . Exploration | -11 -10 -9 -9 -9 -8 -8 -8 -7 -7 -6 -6 ------------- Run | Scr Mat Mat Min Exi Min Mat Sto Fac DSF Fac Low Turns Passed 6504 | 42 735 660 533 831 951 921 872 241 232 398 88 Spaces Moved 3468 | 41 437 342 387 621 305 446 366 127 104 213 79 Core 114 | 11 4 6 . . . . . . . 14 79 Treads . | . . . . . . . . . . . . Legs 1951 | . . 98 387 621 305 290 126 123 1 . . Wheels 56 | 30 26 . . . . . . . . . . Hover 1227 | . 405 238 . . . 156 234 4 103 87 . Flight 120 | . 2 . . . . . 6 . . 112 . Fastest Speed 34 | 50 56 52 120 120 120 120 34 126 126 40 50 Average Speed 127 | 71 99 101 120 130 164 147 142 187 126 96 100 Slowest Speed 250 | 80 200 250 120 190 190 250 190 190 190 186 250 Overloaded Moves . | . . . . . . . . . . . . Propulsion Burnouts . | . . . . . . . . . . . . Robots Hopped 1 | . . . . . . . . . . 1 . Cave-ins Triggered . | . . . . . . . . . . . . Time Travels 1 | . . . . 1 . . . . . . . Exploration Rate (%) 44 | 3 59 34 90 94 83 26 53 5 64 8 15 Regions Visited 11 Branch Regions 5 Pre-discovered Areas . | . . . . . . . . . . . . Known Exits Taken 6 | . . 1 1 1 1 1 . 1 . . . Unknown Exits Taken 4 | 1 1 . . . . . 1 . . 1 . Scrap Searched 3 | . . . 1 . 1 . . . . . 1 Spaces Dug . | . . . . . . . . . . . . Terrain Destroyed 188 | . 52 . . . 14 76 20 . 5 21 . Melee . | . . . . . . . . . . . . Projectile 3 | . . . . . . 3 . . . . . AOE 185 | . 52 . . . 14 73 20 . 5 21 . Terrain Rammed . | . . . . . . . . . . . . Walls Destroyed . | . . . . . . . . . . . . Machines Disabled . | . . . . . . . . . . . . Actions | -11 -10 -9 -9 -9 -8 -8 -8 -7 -7 -6 -6 --------- Run | Scr Mat Mat Min Exi Min Mat Sto Fac DSF Fac Low Total 5013 | 53 624 488 455 640 748 600 656 129 181 354 85 Wait 970 | . 78 16 59 14 440 36 207 . 8 112 . Move 3456 | 40 436 341 386 620 304 445 365 126 103 211 79 Hop 1 | . . . . . . . . . . 1 . Pick Up 60 | 8 14 8 3 1 . 12 11 1 . . 2 Fast Attach 25 | . 4 7 . 2 1 6 3 1 . 1 . Attach 48 | 5 9 6 4 . . 9 9 1 . 3 2 Detach 1 | . . . . . . 1 . . . . . Swap 39 | . 10 8 . 1 . 12 5 . 2 1 . Drop 47 | . 9 8 1 2 . 14 10 . 2 1 . Fire 293 | . 63 84 . . 2 59 44 . 15 24 2 Melee 13 | . . 9 . . . 4 . . . . . Ram 1 | . 1 . . . . . . . . . . Kick 7 | . . 1 2 . 1 2 1 . . . . Crush . | . . . . . . . . . . . . Escape Stasis 51 | . . . . . . . . . 51 . . Rewire 1 | . . . . . . . 1 . . . . Trap . | . . . . . . . . . . . . Miscellaneous . | . . . . . . . . . . . . Route ------- -11/Scrapyard -10/Materials (discovered 2 exits: *Mat / [*Min]) -9/Materials (discovered 2 exits: *Mat / *Min) -9/Mines (discovered 3 exits: *Mat x2 / *Exi) -9/Exiles (discovered 2 exits: *Min x2) -8/Mines -8/Materials -8/Storage -7/Factory -7/DSF -6/Factory -6/Lower Caves History --------- Turn | Location | Event 15 | -11/Scrapyard | Discovered new exit (range 15) 43 | -11/Scrapyard | Entered Materials 240 | -10/Materials | Lost 3 parts (2n1u) 342 | -10/Materials | Build established: Mutant 455 | -10/Materials | Discovered new exit (range 15) 663 | -10/Materials | Core integrity fell below 50% 663 | -10/Materials | Core integrity fell below 20% 683 | -10/Materials | Discovered new exit (range 15) 778 | -10/Materials | Entered another Materials area 778 | -9/Materials | Evolved 2 slots: Propulsion x1, Utility x1 1059 | -9/Materials | Build established: Scavenger-Mutant 1281 | -9/Materials | Discovered new exit (range 15) 1330 | -9/Materials | Discovered new exit (range 15) 1412 | -9/Materials | Core integrity fell below 50% 1437 | -9/Materials | Identified exit to Mines 1438 | -9/Materials | Entered Mines 1458 | -9/Mines | Lost 3 parts (1n2w) 1575 | -9/Mines | YI-UF0 nonchalantly dropped a Grenade Launcher on the ground 1624 | -9/Mines | Learned Materials terminal intel 1783 | -9/Mines | Discovered new exit (range 9) 1791 | -9/Mines | Identified exit to Materials 1796 | -9/Mines | Assisted by bots powering up and referring to "LRC-V3" 1875 | -9/Mines | Discovered exit to Materials (range 7) 1890 | -9/Mines | Learned location of 1 exit from Materials 1960 | -9/Mines | Deemed a non-threat by the Exiles lab entrance 1960 | -9/Mines | Discovered new exit (range 5) 1963 | -9/Mines | Identified exit to Exiles 1971 | -9/Mines | Entered Exiles 1971 | -9/Exiles | Accompanied by 3 allies 1987 | -9/Exiles | Discovered new exit (range 15) 2005 | -9/Exiles | Identified exit to Mines 2031 | -9/Exiles | Met 8R-AWN 2048 | -9/Exiles | Met EX-HEX 2113 | -9/Exiles | Met EX-DEC 2143 | -9/Exiles | Visited The Gauntlet 2379 | -9/Exiles | Discovered exit to Mines (range 15) 2453 | -9/Exiles | Met EX-BIN 2551 | -9/Exiles | Aligned with FarCom system 2552 | -9/Exiles | Given EX-Vault access code 2580 | -9/Exiles | Opened EX-Vault 2592 | -9/Exiles | Found Prototype Device 2593 | -9/Exiles | Identified Cloak of Protection 2598 | -9/Exiles | Found Prototype Device 2598 | -9/Exiles | Identified Trap Reconfigurator 2602 | -9/Exiles | Found Prototype Device 2602 | -9/Exiles | Identified Chronowheel 2602 | -9/Exiles | Activated Chronowheel 2602 | -9/Exiles | Spacetime reconverged on an earlier point 2655 | -9/Exiles | Warned to stay clear of 0b10 Research branches 2802 | -9/Exiles | Left Exiles lab with Cloak of Protection 2802 | -9/Exiles | Entered Mines 2802 | -8/Mines | Accompanied by 3 allies 3656 | -8/Mines | Discovered exit to Materials (range 3) 3753 | -8/Mines | Entered Materials 3753 | -8/Materials | Accompanied by 2 allies 3753 | -8/Materials | Evolved 2 slots: Power x1, Utility x1 3754 | -8/Materials | Identified exit to Storage 3755 | -8/Materials | Loaded intel: 12 terminal locations 4193 | -8/Materials | Lost 3 parts (2u1w) 4586 | -8/Materials | Build established: Mutant 4674 | -8/Materials | Entered Storage 5175 | -8/Storage | Assisted by bots powering up and referring to "LRC-V3" 5362 | -8/Storage | Repaired Adv. EMP Blaster 5415 | -8/Storage | Discovered new exit (range 16) 5440 | -8/Storage | Build established: Commander-Mutant 5546 | -8/Storage | Entered Factory 5546 | -7/Factory | Accompanied by 7 allies 5546 | -7/Factory | Evolved 2 slots: Utility x1, Weapon x1 5786 | -7/Factory | Identified exit to DSF 5787 | -7/Factory | Entered DSF 5787 | -7/DSF | Accompanied by 7 allies 5806 | -7/DSF | Additional patrols routed to DSF 5814 | -7/DSF | Discovered new exit (range 17) 5935 | -7/DSF | Sterilization system engaged 5955 | -7/DSF | Ambient heat levels rising (+10) 5970 | -7/DSF | Ambient heat levels rising (+10) 5985 | -7/DSF | Ambient heat levels rising (+10) 6000 | -7/DSF | Ambient heat levels rising (+10) 6015 | -7/DSF | Ambient heat levels rising (+10) 6019 | -7/DSF | Entered Factory 6019 | -6/Factory | Evolved 2 slots: Power x1, Utility x1 6411 | -6/Factory | Discovered new exit (range 16) 6414 | -6/Factory | Core integrity fell below 50% 6417 | -6/Factory | Entered Lower Caves 6445 | -6/Lower Caves | Lost 15 parts (3p4n3u5w) 6452 | -6/Lower Caves | Encountered a Warlord checkpoint 6482 | -6/Lower Caves | Core integrity fell below 20% 6505 | -6/Lower Caves | Destroyed by P-60 Hacker with Shock Rifle Last Messages --------------- 06420_ Acquired 27 matter. 06430_ System corrupted: Component data lost. 06444_ Slug penetrates Wall. 06452_ UC-6C9(M): "Unaware activity is slow around here lately. Bring on the action!" 06457_ Slug penetrates Wall. 06465_ Slug penetrates UC-6C9(M). 06467_ Penetrated by Slug. 06467_ Slug penetrates UC-6C9(M). 06470_ UC-6C9(M) suffers critical hit (Destroy). 06470_ UC-6C9(M) destroyed. 06470_ Slug penetrates Wall. 06470_ Angular Momentum Engine destroyed. 06472_ Acquired Barrage Gun. 06474_ Penetrated by Slug. 06477_ Barrage Gun destroyed. 06481_ Penetrated by Slug. 06485_ Slug penetrates Wall. 06485_ Penetrated by Slug. [Achievement: Just Browsing] Map ----- +----------------------------------------------------+ | ?????????????????????????????????????????????????? | | ?????????????????????????????????????????????????? | | ?????????????????????????????????????????????????? | | ?????????????????????????????????????????????????? | | ?????????????????????????????????????????????????? | | ?????????????????????????????????????????????????? | | ?????????????????????????????????????????????????? | | ?????????????????????????????????????????????????? | | ?????????????????????????????????????????????????? | | ????????????????????????????????? ##?????????????? | | ????????????????????????#?????? ? ??????###????? | | ???????????????????????? ????? ?????# ###?? | | ???????????????????????? ?????? ????## ?? | | ???????????????????????? ?????# ????? ?? | | ???????????????????????? ?????? ?????? ## | | ???????????????????????? ?????? ???????# ## | | ??????????????"#?????##? ??????# ???????# ## | | ??????????????? ????# ####### ????????# | | ???????????????? #### # """ ??????### | | ????????????????? p # """""" #??????# # | | ??????????????????? # """ """ #??????# # | | ???????????????????? """ #???????# | | ????????????????????? """ """ ########## | | ??????????????????????# """""" | | ???????????????????????# """ | | ????????????????????????#@ ######### | | ????????????????????????## ## ##??????# | | ?????????????????????#### #??????# | | ?????????????????????# #?????# | | ?????????????????????# ## #???# | | ???????????????????### ## ###### #???## | | ??????????????????## ##### ##????? ##????# | | ??????????????????# ####?#####???? ##???? # | | ??????????????????# ## #???# #?????#????? # | | ??????????????????# ##?# #??????????? #### | | ??????????????????# ## #????????????????? | | ??????????????????## ## #????????????????? | | ???????????????????##?### ##????????????????? | | ????????????????????????########?????????????????? | | ?????????????????????????????????????????????????? | | ?????????????????????????????????????????????????? | | ?????????????????????????????????????????????????? | | ?????????????????????????????????????????????????? | | ?????????????????????????????????????????????????? | | ?????????????????????????????????????????????????? | | ?????????????????????????????????????????????????? | | ?????????????????????????????????????????????????? | | ?????????????????????????????????????????????????? | | ?????????????????????????????????????????????????? | | ?????????????????????????????????????????????????? | +----------------------------------------------------+ Best States ------------- Heat Dissipation 45 Energy Generation 40 Energy Capacity 780 Matter Stores 396 Matter Capacity 400 Sight Range 18 Robot Scan Range 14 Terrain Scan Density 10 Cloak Strength 5 Additional Mass Support 12 Weapon Shielding 66 Evasion (%) 62 Offensive Hacking 10 Item Schematics ----------------- Datajack | -9/Materials | Scanalyzed Robot Schematics ------------------ None Fabricated ------------ Nothing Alien Tech Used ----------------- None Achievements -------------- A New Friend Just Browsing The More The Merrier Challenges ------------ None Game ------ Seed HeatDisruptionAutogun Manual? 0 Play Time 01:21:22 Cumulative 23.1 hours Start 2022.12.19 @ 13:02:04 End 2022.12.19 @ 14:31:51 Sessions 1 Manual Loads 0 Difficulty Rogue Special Mode None Game No. 38 Rogue 38 Adventurer 0 Explorer 0 Win Type - Total 0 Types 0/0/0/0/0/0/0/0/0 Lore% 25 Gallery% 25 Achievement% 21 Wizard Run 0 Options --------- ASCII 0 Keyboard 0 Movement Vi Keybinds 0 Fullscreen 1 Font 18/SmallcapsGlow Map View 76x50 Tactical HUD 1 Map Filters NONE Filters NONE Steam 1 RUN: 52bb753d-2392-4523-8e09-b048e00061bd